bitfinex/quotes_BTCUSD_20251114
["timestamp","ask_amount","ask_price","bid_price","bid_amount"]
[1763089516317,0.20096261,99521.0,99520.0,0.02]
[1763089517553,0.20098078,99512.0,99511.0,0.38416812]
[1763089517707,0.20098078,99512.0,99510.0,0.02]
[1763089518518,0.200996,99505.0,99501.0,0.00068975]
[1763089518717,0.20100005,99503.0,99501.0,0.00068975]
[1763089519017,0.20098861,99509.0,99501.0,0.00068975]
[1763089519234,0.20099148,99507.0,99501.0,0.00068975]
[1763089519603,0.20100075,99503.0,99501.0,0.00068975]
[1763089520306,0.20100075,99503.0,99501.0,0.00168975]
[1763089520889,0.20099769,99504.0,99501.0,0.00168975]
[1763089521100,0.20100098,99502.0,99501.0,0.00368975]
[1763089521291,0.20100098,99502.0,99501.0,0.00068975]
[1763089521589,0.20100098,99502.0,99501.0,0.00468975]
[1763089521945,0.20100098,99502.0,99501.0,0.00268975]
[1763089522411,0.20100098,99502.0,99501.0,0.00468975]
[1763089523056,0.26130014,99502.0,99501.0,0.00468975]
[1763089523639,0.20100098,99502.0,99501.0,0.00468975]
[1763089524099,0.22389098,99502.0,99501.0,0.00268975]
[1763089524725,0.22389098,99502.0,99501.0,0.00168975]
[1763089524910,0.22389098,99502.0,99501.0,0.00268975]
[1763089525124,0.3178962,99502.0,99501.0,0.00168975]
[1763089525260,0.3178962,99502.0,99500.0,0.01511023]
[1763089525465,0.02289,99501.0,99500.0,1e-08]
[1763089525667,0.10624283,99501.0,99500.0,1e-08]
[1763089526912,0.02289,99501.0,99500.0,1e-08]
[1763089527838,0.11812237,99501.0,99500.0,1e-08]
[1763089531520,0.44112237,99501.0,99500.0,1e-08]
[1763089536136,0.44112237,99501.0,99492.0,0.00023172]
[1763089536137,0.54772916,99493.0,99492.0,1e-08]
[1763089536337,0.64270423,99493.0,99492.0,1e-08]
[1763089537802,0.64370423,99493.0,99492.0,1e-08]
[1763089538474,0.66238011,99493.0,99492.0,1e-08]
[1763089541350,2.66238011,99493.0,99492.0,1e-08]
[1763089542874,0.56740504,99493.0,99492.0,1e-08]
[1763089546727,0.24440504,99493.0,99492.0,1e-08]
[1763089546930,0.22572916,99493.0,99492.0,1e-08]
[1763089547263,0.20201916,99493.0,99492.0,1e-08]
[1763089547544,0.20101916,99493.0,99492.0,1e-08]
[1763089547674,0.29623739,99501.0,99492.0,1e-08]
[1763089547675,0.09523237,99501.0,99492.0,1e-08]
[1763089548094,0.20101338,99496.0,99492.0,1e-08]
[1763089548288,0.09523237,99501.0,99492.0,1e-08]
[1763089548486,0.20101718,99494.0,99492.0,1e-08]
[1763089548725,0.10480152,99501.0,99492.0,0.00100001]
[1763089548930,0.20101903,99494.0,99492.0,1e-08]
[1763089549296,0.20101903,99494.0,99492.0,0.00100001]
[1763089549496,0.20101903,99494.0,99492.0,1e-08]
[1763089549750,0.20101903,99494.0,99492.0,0.00100001]
[1763089549911,0.10480152,99501.0,99492.0,0.00200001]
[1763089550118,0.20101897,99494.0,99492.0,1e-08]
[1763089550575,0.20101897,99494.0,99492.0,0.00100001]
[1763089550772,0.20101301,99497.0,99492.0,0.00100001]
[1763089551039,0.20146055,99502.0,99492.0,0.00100001]
[1763089551320,0.20100976,99498.0,99492.0,0.38516813]
[1763089551521,0.20101322,99496.0,99492.0,0.00100001]
[1763089551681,0.20100976,99498.0,99492.0,0.00200001]
[1763089551882,0.20100976,99498.0,99492.0,1e-08]
[1763089552291,0.20101366,99496.0,99492.0,0.00100001]
[1763089552470,0.20100976,99498.0,99492.0,0.00100001]
[1763089552677,0.20101346,99496.0,99492.0,1e-08]
[1763089552918,0.20101346,99496.0,99492.0,0.00100001]
[1763089553099,0.20101754,99494.0,99492.0,0.00200001]
[1763089553324,0.20101754,99494.0,99492.0,0.00100001]
[1763089553496,0.20101754,99494.0,99492.0,1e-08]
[1763089553723,0.20101346,99496.0,99492.0,1e-08]
[1763089553935,0.20101746,99494.0,99492.0,0.00100001]
[1763089554632,0.20101746,99494.0,99492.0,0.00200001]
[1763089554845,0.20101746,99494.0,99492.0,0.00100001]
[1763089555055,0.20100593,99500.0,99492.0,0.20102025]
[1763089555217,0.20146024,99502.0,99494.0,0.20101649]
[1763089555418,0.00045915,99502.0,99496.0,0.20101298]
[1763089555864,0.20146115,99502.0,99496.0,0.20101298]
[1763089556381,0.00045915,99502.0,99496.0,0.20101298]
[1763089556710,0.00045915,99502.0,99498.0,0.20100797]
[1763089556916,0.00045915,99502.0,99500.0,0.02]
[1763089557130,0.00045915,99502.0,99500.0,0.201004]
[1763089557337,0.00045915,99502.0,99500.0,0.221004]
[1763089557750,0.00045915,99502.0,99500.0,0.201004]
[1763089559100,0.00045915,99502.0,99501.0,0.201003]
[1763089560955,0.00045915,99502.0,99500.0,0.02]
[1763089561453,0.00045915,99502.0,99501.0,0.325]
[1763089561694,0.03577823,99552.0,99501.0,0.325]
[1763089561695,0.07629556,99570.0,99530.0,0.01]
[1763089561882,0.07629556,99570.0,99523.0,0.38449473]
[1763089561883,0.20086774,99568.0,99560.0,0.38449473]
[1763089562103,0.00012466,99570.0,99563.0,0.20087715]
[1763089562301,0.00012466,99570.0,99563.0,0.20087734]
[1763089562511,0.00012466,99570.0,99565.0,0.20087233]
[1763089563158,0.00012466,99570.0,99567.0,0.20086939]
[1763089563309,0.00012466,99570.0,99566.0,0.20087151]
[1763089563514,0.00012466,99570.0,99568.0,0.20086701]
[1763089564505,0.00012466,99570.0,99561.0,0.09523237]
[1763089564703,0.00012466,99570.0,99568.0,0.20086742]
[1763089565173,0.00012466,99570.0,99565.0,0.001]
[1763089565174,0.20086573,99569.0,99565.0,0.001]
[1763089565396,0.20087018,99567.0,99565.0,0.002]
[1763089565587,0.17134813,99569.0,99565.0,0.001]
[1763089565795,0.20086573,99569.0,99568.0,0.001]
[1763089566002,0.20086573,99569.0,99568.0,0.002]
[1763089566221,0.20086573,99569.0,99568.0,0.001]
[1763089566645,0.20087178,99566.0,99565.0,0.001]
[1763089566818,0.20087648,99564.0,99560.0,0.02]
[1763089567890,0.20086774,99568.0,99560.0,0.22088204]
[1763089568100,0.20087629,99564.0,99560.0,0.02]
[1763089568313,0.20088059,99562.0,99560.0,0.02]
[1763089568503,0.20089159,99557.0,99550.0,0.5684802]
[1763089568726,0.20089467,99555.0,99550.0,0.5684802]
[1763089569305,0.00012466,99570.0,99550.0,0.5684802]
[1763089569306,0.20087771,99564.0,99550.0,0.02]
[1763089569581,0.20090003,99552.0,99550.0,0.02]
[1763089569879,0.2008927,99556.0,99550.0,0.02]
[1763089570044,0.20090035,99552.0,99550.0,0.021]
[1763089570253,0.20087783,99563.0,99560.0,0.001]
[1763089571458,0.20089047,99557.0,99552.0,0.20089972]
[1763089571661,0.20088561,99560.0,99554.0,0.20089547]
[1763089571860,0.20088561,99560.0,99552.0,0.20089972]
[1763089572062,0.20089899,99553.0,99550.0,0.021]
[1763089572268,0.20089587,99555.0,99550.0,0.021]
[1763089572497,0.20089696,99554.0,99550.0,0.02]
[1763089572696,0.20090051,99552.0,99550.0,0.02]
[1763089573320,0.20091422,99545.0,99541.0,0.323]
[1763089573739,0.20091422,99545.0,99540.0,0.5684802]
[1763089573740,0.20092021,99542.0,99540.0,0.02]
[1763089573955,0.20093628,99535.0,99530.0,0.02]
[1763089574155,0.20093628,99535.0,99523.0,0.03017499]
[1763089574156,0.02294,99533.0,99523.0,0.03017499]
[1763089574368,0.02294,99533.0,99490.0,0.55853146]
[1763089574582,0.02294,99533.0,99494.0,0.323]
[1763089574785,0.30144671,99521.0,99492.0,0.03017499]
[1763089575000,0.20102026,99493.0,99480.0,0.5484802]
[1763089575217,0.01004924,99510.0,99493.0,0.20101916]
[1763089575412,0.01004924,99510.0,99494.0,0.20101714]
[1763089575621,0.20098684,99509.0,99500.0,0.02]
[1763089575823,0.01004823,99520.0,99501.0,0.201003]
[1763089576068,0.20097876,99513.0,99501.0,0.201003]
[1763089576230,0.20097876,99513.0,99500.0,0.02]
[1763089576429,0.20099163,99507.0,99500.0,0.22100465]
[1763089576869,0.20098767,99509.0,99502.0,0.20099971]
[1763089577051,0.01004823,99520.0,99500.0,0.02]
[1763089577814,0.20098426,99511.0,99503.0,0.20099789]
[1763089578026,0.20097876,99513.0,99505.0,0.20099301]
[1763089578213,0.20097388,99516.0,99507.0,0.20098934]
[1763089578805,0.01004823,99520.0,99509.0,0.20098615]
[1763089579005,0.01004823,99520.0,99500.0,0.021]
[1763089579006,0.20095122,99527.0,99520.0,0.02]
[1763089579207,0.20095122,99527.0,99510.0,0.5484802]
[1763089579208,2.0,99548.0,99530.0,0.02]
[1763089579434,0.20093117,99537.0,99530.0,0.02]
[1763089579639,0.01714,99549.0,99530.0,0.02]
[1763089579640,0.06439798,99547.0,99530.0,0.02]
[1763089579849,0.20091415,99545.0,99530.0,0.02]
[1763089580090,0.20091909,99543.0,99540.0,0.02]
[1763089580280,0.20094635,99530.0,99523.0,0.00023162]
[1763089580490,0.01004621,99540.0,99523.0,0.00023162]
[1763089580703,0.04008,99524.0,99523.0,0.00023162]
[1763089580903,0.09380196,99524.0,99523.0,0.00023162]
[1763089581511,0.09380196,99524.0,99507.0,0.001]
[1763089581512,0.20098886,99508.0,99507.0,0.001]
[1763089581721,0.24106886,99508.0,99507.0,0.001]
[1763089582330,0.20101126,99497.0,99489.0,0.20102661]
[1763089582719,0.09523237,99509.0,99492.0,0.20102118]
[1763089582923,0.09523237,99509.0,99508.0,0.03616]
[1763089583078,0.29621921,99509.0,99508.0,0.03616]
[1763089583490,0.29621921,99509.0,99508.0,0.01421]
[1763089583915,0.29621921,99509.0,99508.0,0.04719]
[1763089583916,0.20098684,99509.0,99508.0,0.04719]
[1763089584331,0.20098684,99509.0,99508.0,0.04819]
[1763089585104,0.20097992,99513.0,99509.0,0.03298]
[1763089585334,0.20098,99513.0,99510.0,0.02]
[1763089585539,0.20098684,99509.0,99508.0,0.01521]
[1763089585820,0.20097589,99515.0,99510.0,0.03298]
[1763089586024,0.01004823,99520.0,99510.0,0.03298]
[1763089586185,0.20097915,99513.0,99510.0,0.05298]
[1763089586904,0.20098684,99509.0,99508.0,0.01421]
[1763089587819,0.20098684,99509.0,99508.0,0.04719]
[1763089588291,0.20098684,99509.0,99508.0,0.0145961]
[1763089588827,0.20098684,99509.0,99508.0,0.0155961]
[1763089589241,0.20098684,99509.0,99508.0,0.0165961]
[1763089589849,0.20098009,99516.0,99508.0,0.0165961]
[1763089589850,0.20097472,99515.0,99508.0,0.0495761]
[1763089590057,0.20096057,99523.0,99517.0,0.02195]
[1763089590284,0.21099343,99530.0,99525.0,0.02194]
[1763089590506,0.21099343,99530.0,99514.0,0.00023165]
[1763089590507,0.09523237,99526.0,99514.0,0.00023165]
[1763089590718,0.24059472,99515.0,99514.0,0.00023165]
[1763089594979,0.21796472,99515.0,99514.0,0.00023165]
[1763089595763,0.24059472,99515.0,99514.0,0.00023165]
[1763089597172,0.30484788,99515.0,99514.0,0.00023165]
[1763089597325,0.24059472,99515.0,99514.0,0.00023165]
[1763089601343,0.23666411,99515.0,99514.0,0.00023165]
[1763089601564,0.25929411,99515.0,99514.0,0.00023165]
[1763089601782,0.25929411,99515.0,99490.0,0.01421]
[1763089601783,0.2010232,99491.0,99490.0,0.06755]
[1763089601975,0.20099694,99504.0,99503.0,0.01421]
[1763089604154,0.2197437,99504.0,99503.0,0.01421]
[1763089604349,0.20099694,99504.0,99503.0,0.01421]
[1763089604816,0.20097674,99514.0,99512.0,0.02194]
[1763089605026,0.21972659,99513.0,99512.0,0.01416]
[1763089605237,0.20099694,99504.0,99503.0,0.01421]
[1763089606517,0.20099694,99504.0,99490.0,0.4090631]
[1763089606518,0.20101689,99495.0,99490.0,0.02466915]
[1763089606720,0.2010232,99491.0,99490.0,0.01466915]
[1763089607311,0.2010232,99491.0,99490.0,0.01528705]
[1763089607875,0.2010232,99491.0,99490.0,0.05062705]
[1763089608064,0.2010232,99491.0,99490.0,0.04962705]
[1763089608478,0.2010232,99491.0,99490.0,0.01728705]
[1763089608685,0.20101438,99496.0,99490.0,0.01728705]
[1763089608824,0.20101482,99496.0,99490.0,0.01666915]
[1763089609025,0.20101482,99496.0,99491.0,0.03334]
[1763089609289,0.20102117,99493.0,99491.0,0.03334]
[1763089609835,0.2010175,99494.0,99491.0,0.03334]
[1763089610030,0.20102118,99492.0,99491.0,0.03334]
[1763089610655,0.20102118,99492.0,99491.0,0.03434]
[1763089610874,0.20102118,99492.0,99491.0,0.001]
[1763089611081,0.24241568,99492.0,99491.0,0.002]
[1763089611258,0.24241568,99492.0,99491.0,0.001]
[1763089611476,0.31808253,99492.0,99491.0,0.001]
[1763089611831,0.31808253,99492.0,99491.0,0.002]
[1763089612021,0.31808253,99492.0,99490.0,0.00045915]
[1763089612352,0.0413945,99491.0,99490.0,0.00045915]
[1763089612564,0.0187645,99491.0,99490.0,0.00045915]
[1763089613193,0.20102118,99492.0,99490.0,0.00045915]
[1763089613403,0.19537003,99492.0,99490.0,0.00045915]
[1763089614771,0.03962,99491.0,99490.0,0.00045915]
[1763089615172,0.03962,99491.0,99490.0,0.00107705]
[1763089616378,0.20106362,99471.0,99470.0,0.0004]
[1763089616575,0.20152249,99471.0,99470.0,0.0004]
[1763089617166,0.22415249,99471.0,99470.0,1e-08]
[1763089617543,2.7124215,99471.0,99470.0,1e-08]
[1763089617893,2.74840145,99471.0,99470.0,1e-08]
[1763089618097,2.7124215,99471.0,99470.0,1e-08]
[1763089618310,2.73937691,99471.0,99470.0,1e-08]
[1763089618574,2.7124215,99471.0,99470.0,1e-08]
[1763089619967,2.76626422,99471.0,99470.0,1e-08]
[1763089620184,2.7124215,99471.0,99470.0,1e-08]
[1763089620796,0.20114451,99431.0,99430.0,0.0004]
[1763089620998,0.23312451,99431.0,99430.0,0.0004]
[1763089621979,0.2335831,99431.0,99430.0,0.0004]
[1763089622187,0.25223925,99431.0,99430.0,0.0004]
[1763089622395,0.25223925,99431.0,99430.0,0.00194588]
[1763089622597,2.66235316,99431.0,99430.0,1e-08]
[1763089622808,2.69391253,99431.0,99430.0,1e-08]
[1763089623234,2.73733127,99431.0,99430.0,1e-08]
[1763089624299,2.6848719,99431.0,99430.0,1e-08]
[1763089624518,2.57523925,99431.0,99430.0,1e-08]
[1763089624739,2.61865799,99431.0,99430.0,1e-08]
[1763089626760,2.57523925,99431.0,99430.0,1e-08]
[1763089627200,2.61865799,99431.0,99430.0,1e-08]
[1763089630440,2.57523925,99431.0,99430.0,1e-08]
[1763089631199,2.33136301,99431.0,99430.0,1e-08]
[1763089631459,2.31270686,99431.0,99430.0,1e-08]
[1763089631687,0.2016031,99431.0,99430.0,1e-08]
[1763089631834,0.00045859,99431.0,99430.0,1e-08]
[1763089632439,0.00045859,99431.0,99430.0,0.03324001]
[1763089633012,0.00045859,99431.0,99430.0,0.03424001]
[1763089633212,0.00045859,99431.0,99430.0,0.00100001]
[1763089633720,0.00045859,99431.0,99430.0,0.02100001]
[1763089634172,0.00045859,99431.0,99430.0,0.04463173]
[1763089634535,0.00045859,99431.0,99430.0,0.02563173]
[1763089634737,0.00045859,99431.0,99430.0,0.02463173]
[1763089635054,0.00045859,99431.0,99430.0,0.00100001]
[1763089635254,0.00045859,99431.0,99430.0,0.02100001]
[1763089635454,0.00045859,99431.0,99430.0,0.02200001]
[1763089635745,0.02148859,99431.0,99430.0,0.00200001]
[1763089636103,0.00045859,99431.0,99430.0,0.00200001]
[1763089636303,0.00045859,99431.0,99430.0,0.00100001]
[1763089636506,0.00045859,99431.0,99430.0,0.02000001]
[1763089636708,0.00045859,99431.0,99430.0,0.02100001]
[1763089637777,0.00045859,99431.0,99430.0,0.02200001]
[1763089637983,0.00045859,99431.0,99430.0,0.00100001]
[1763089638405,0.00045859,99431.0,99430.0,1e-08]
[1763089638631,0.00045859,99431.0,99430.0,0.00100001]
[1763089638834,0.09569096,99431.0,99430.0,0.00200001]
[1763089639047,0.00045859,99431.0,99430.0,1e-08]
[1763089639262,0.11672096,99431.0,99430.0,1e-08]
[1763089639488,0.11672096,99431.0,99430.0,0.00100001]
[1763089639704,0.45833059,99431.0,99430.0,1e-08]
[1763089641519,0.45833059,99431.0,99430.0,0.001]
[1763089642194,0.20117445,99417.0,99411.0,0.03324]
[1763089642434,0.00045859,99431.0,99411.0,0.03324]
[1763089642650,0.2016031,99431.0,99430.0,0.01416]
[1763089642875,0.22024212,99431.0,99430.0,0.001]
[1763089643080,0.01909761,99431.0,99411.0,0.03324]
[1763089643283,0.29639186,99424.0,99421.0,0.01416]
[1763089643509,0.20116272,99422.0,99421.0,0.01416]
[1763089645033,0.20118295,99412.0,99410.0,0.0004]
[1763089645236,0.20117501,99416.0,99410.0,0.0004]
[1763089645438,0.01868004,99415.0,99410.0,0.0004]
[1763089645676,0.01868004,99414.0,99410.0,0.0004]
[1763089645880,0.20118497,99411.0,99410.0,0.0204]
[1763089646205,0.0187005,99411.0,99410.0,0.0204]
[1763089647033,0.0187005,99411.0,99410.0,0.0214]
[1763089647611,0.0187005,99411.0,99410.0,0.0224]
[1763089648300,0.0187005,99411.0,99410.0,0.0214]
[1763089648500,0.0187005,99411.0,99410.0,0.0014]
[1763089648758,0.20117463,99417.0,99411.0,0.23442425]
[1763089648964,0.01872359,99416.0,99413.0,0.2011804]
[1763089649106,0.01872359,99415.0,99413.0,0.2011804]
[1763089649307,0.01872359,99414.0,99411.0,0.20118425]
[1763089649514,0.01872359,99413.0,99410.0,0.0024]
[1763089649716,0.01872359,99412.0,99411.0,0.20118497]
[1763089649916,0.20116676,99420.0,99413.0,0.20117971]
[1763089650289,0.01872578,99419.0,99415.0,0.20117535]
[1763089650492,0.01872578,99418.0,99416.0,0.03054]
[1763089650693,0.01872578,99417.0,99416.0,0.03054]
[1763089650906,0.01872794,99422.0,99417.0,0.20117283]
[1763089651063,0.20115536,99426.0,99425.0,0.03275]
[1763089651265,0.21988361,99426.0,99425.0,0.01192]
[1763089653545,0.21988287,99426.0,99425.0,0.01192]
[1763089653954,0.01872825,99426.0,99425.0,0.01192]
[1763089654294,0.21988287,99426.0,99425.0,0.04246]
[1763089655124,0.01872825,99426.0,99425.0,0.04246]
[1763089655302,0.21988287,99426.0,99425.0,0.04446]
[1763089655713,0.21988287,99426.0,99425.0,0.04346]
[1763089655930,0.21988287,99426.0,99425.0,0.04446]
[1763089656780,0.21988287,99426.0,99425.0,0.01292]
[1763089657078,0.21988287,99426.0,99425.0,0.01392]
[1763089660558,0.01872825,99426.0,99425.0,0.01392]
[1763089660775,0.21988287,99426.0,99425.0,0.01392]
[1763089662302,0.28214679,99426.0,99425.0,0.01392]
[1763089662660,0.21988287,99426.0,99425.0,0.01392]
[1763089663113,0.21055411,99426.0,99425.0,0.01392]
[1763089663904,0.00045859,99431.0,99425.0,0.01392]
[1763089664108,0.00045859,99431.0,99430.0,0.02]
[1763089665594,0.00045859,99431.0,99429.0,0.20114845]
[1763089666161,0.00045859,99431.0,99430.0,0.03154]
[1763089666474,0.00045859,99431.0,99430.0,0.03054]
[1763089666682,0.00045859,99431.0,99430.0,0.03154]
[1763089667044,0.00045859,99431.0,99430.0,0.03054]
[1763089667447,0.00045859,99431.0,99430.0,0.03254]
[1763089668406,0.00045859,99431.0,99430.0,0.03454]
[1763089668600,0.00045859,99431.0,99430.0,0.23568653]
[1763089669015,0.00045859,99431.0,99430.0,0.20514653]
[1763089674158,0.00045859,99431.0,99430.0,0.52814653]
[1763089676270,0.00045859,99431.0,99430.0,0.54814653]
[1763089676494,0.00045859,99431.0,99430.0,0.52814653]
[1763089676734,0.00045859,99431.0,99430.0,0.57156527]
[1763089676956,1e-08,99431.0,99430.0,0.61239527]
[1763089677181,1e-08,99431.0,99430.0,0.60137527]
[1763089677397,0.20106599,99470.0,99455.0,0.20109597]
[1763089677625,0.20105378,99476.0,99455.0,0.22206316]
[1763089677839,0.20105378,99476.0,99455.0,0.20123316]
[1763089678047,0.20105813,99474.0,99455.0,0.20123316]
[1763089678948,0.20105813,99474.0,99455.0,0.20223316]
[1763089679382,0.20105393,99476.0,99455.0,0.20223316]
[1763089679615,0.20105393,99476.0,99455.0,0.20323316]
[1763089680081,0.20105393,99476.0,99455.0,0.20223316]
[1763089680320,0.09523237,99478.0,99455.0,0.20223316]
[1763089680556,0.2010566,99475.0,99455.0,0.20423316]
[1763089680802,0.20103756,99484.0,99455.0,0.52723316]
[1763089681351,0.20101831,99494.0,99455.0,0.52923316]
[1763089681592,0.01005025,99500.0,99455.0,0.5726519]
[1763089681854,0.20102317,99492.0,99455.0,0.5726519]
[1763089682427,0.20101639,99495.0,99490.0,0.02]
[1763089682661,0.20100704,99499.0,99491.0,0.01154]
[1763089682880,0.20101951,99493.0,99491.0,0.04019]
[1763089683107,0.29624687,99496.0,99491.0,0.04019]
[1763089683326,0.29624687,99496.0,99491.0,0.01154]
[1763089683544,0.20101916,99493.0,99492.0,0.02865]
[1763089684514,0.21884248,99493.0,99491.0,0.01267719]
[1763089684716,0.20101916,99493.0,99492.0,0.02055]
[1763089684913,0.20101916,99493.0,99492.0,0.02155]
[1763089685280,0.20101916,99493.0,99492.0,0.02055]
[1763089685487,0.01005025,99500.0,99493.0,0.02865]
[1763089685683,0.2010109,99498.0,99493.0,0.02865]
[1763089685966,0.20102118,99492.0,99491.0,0.01167719]
[1763089686494,0.20102118,99492.0,99491.0,0.01267719]
[1763089686854,0.20102118,99492.0,99491.0,0.01167719]
[1763089687213,0.20102118,99492.0,99491.0,0.01267719]
[1763089688441,0.20102118,99492.0,99491.0,0.01367719]
[1763089689037,0.20101714,99494.0,99491.0,0.01367719]
[1763089689038,0.20101714,99494.0,99492.0,0.02846]
[1763089690473,0.20101714,99494.0,99492.0,0.02946]
[1763089692169,0.20101714,99494.0,99492.0,0.0294594]
[1763089692910,0.20101714,99494.0,99492.0,0.0304594]
[1763089694327,0.20101714,99494.0,99492.0,0.002]
[1763089694704,0.00095277,99493.0,99492.0,0.002]
[1763089695757,0.00095277,99493.0,99492.0,0.001]
[1763089695942,0.00095277,99493.0,99492.0,0.002]
[1763089696086,0.00095277,99493.0,99492.0,0.001]
[1763089696488,0.00095277,99493.0,99492.0,0.002]
[1763089697254,0.00095277,99493.0,99492.0,0.20302118]
[1763089699209,0.00095277,99493.0,99492.0,0.002]
[1763089700923,0.00095277,99493.0,99492.0,0.20302118]
[1763089701931,0.00095277,99493.0,99492.0,0.002]
[1763089709553,0.00095277,99493.0,99492.0,0.20302118]
[1763089709791,0.00095277,99493.0,99492.0,0.22333702]
[1763089710287,0.20197193,99493.0,99492.0,0.002]
[1763089711345,0.00095277,99493.0,99492.0,0.002]
[1763089716282,0.00095277,99493.0,99492.0,0.325]
[1763089717524,0.00095277,99493.0,99492.0,0.324]
[1763089717737,0.00095277,99493.0,99492.0,0.325]
[1763089717890,0.00095277,99493.0,99492.0,0.324]
[1763089718478,0.00095277,99493.0,99492.0,0.325]
[1763089718682,0.00095277,99493.0,99492.0,0.327]
[1763089718885,0.00095277,99493.0,99492.0,0.325]
[1763089719080,0.00095277,99493.0,99492.0,0.323]
[1763089720348,0.00095277,99493.0,99492.0,0.36641874]
[1763089722206,0.00095277,99493.0,99491.0,0.33504719]
[1763089722416,0.38463191,99510.0,99500.0,0.03858]
[1763089722641,0.201003,99501.0,99500.0,0.03858]
[1763089722858,0.20216169,99501.0,99500.0,0.03858]
[1763089723274,0.00115869,99501.0,99500.0,0.03858]
[1763089724105,0.00115869,99501.0,99500.0,0.06911]
[1763089724406,0.00115869,99501.0,99500.0,0.24358502]
[1763089724637,0.00115869,99501.0,99500.0,0.04258]
[1763089725046,0.00115869,99501.0,99500.0,0.04058]
[1763089725365,0.00115869,99501.0,99500.0,0.03858]
[1763089725729,0.20216169,99501.0,99500.0,0.03958]
[1763089726478,0.00115869,99501.0,99500.0,0.04058]
[1763089726764,0.00115869,99501.0,99500.0,0.20300502]
[1763089727558,0.00115869,99501.0,99500.0,0.20200502]
[1763089727772,0.00115869,99501.0,99500.0,0.20400502]
[1763089728625,0.00115869,99501.0,99500.0,0.20300502]
[1763089728846,0.00115869,99501.0,99500.0,0.20500502]
[1763089729474,0.00115869,99501.0,99500.0,0.004]
[1763089730214,0.00115869,99501.0,99499.0,0.20100578]
[1763089730436,0.00115869,99501.0,99497.0,0.20100941]
[1763089730437,0.20098945,99508.0,99501.0,0.20100137]
[1763089730746,0.38463191,99510.0,99509.0,0.01858]
[1763089730890,0.20098482,99510.0,99509.0,0.01858]
[1763089731738,0.20099501,99505.0,99502.0,0.02853]
[1763089731944,0.20099893,99504.0,99502.0,0.02853]
[1763089733039,0.20099501,99505.0,99502.0,0.02853]
[1763089733249,0.20098611,99510.0,99502.0,0.02853]
[1763089733484,0.20098865,99509.0,99502.0,0.22953001]
[1763089733691,0.20099125,99507.0,99502.0,0.23153001]
[1763089733895,0.20099125,99507.0,99503.0,0.02853]
[1763089734117,0.20099466,99506.0,99503.0,0.02853]
[1763089734338,0.01456,99519.0,99512.0,0.01154]
[1763089734547,0.20097846,99514.0,99512.0,0.03012]
[1763089735623,0.2009727,99516.0,99512.0,0.03012]
[1763089735823,0.09523237,99517.0,99513.0,0.02853]
[1763089736243,0.09443434,99517.0,99516.0,0.01858]
[1763089737146,0.09523237,99522.0,99516.0,0.01858]
[1763089737359,0.20096647,99520.0,99516.0,0.01858]
[1763089737571,0.20096647,99520.0,99516.0,0.01958]
[1763089737790,0.20096361,99521.0,99516.0,0.01958]
[1763089737961,0.20096361,99521.0,99520.0,0.02]
[1763089738861,0.20095912,99523.0,99520.0,0.02]
[1763089739072,0.20094645,99529.0,99520.0,0.04853]
[1763089739285,0.09523237,99525.0,99520.0,0.04853]
[1763089739500,0.20096261,99521.0,99520.0,0.02]
[1763089740226,0.20095655,99524.0,99520.0,0.02]
[1763089740441,0.20095241,99527.0,99521.0,0.02675]
[1763089740668,0.20094927,99528.0,99521.0,0.22771245]
[1763089740854,0.09523237,99527.0,99521.0,0.22771245]
[1763089741086,0.09523237,99527.0,99522.0,0.02675]
[1763089741291,0.29618478,99527.0,99522.0,0.03579]
[1763089741697,0.09523237,99527.0,99522.0,0.03579]
[1763089741910,0.00023162,99523.0,99522.0,0.03579]
[1763089743511,0.00023162,99523.0,99522.0,0.21000059]
[1763089745211,0.00023162,99523.0,99522.0,0.21100059]
[1763089745409,0.00023162,99523.0,99522.0,0.21200059]
[1763089746230,0.00023162,99523.0,99522.0,0.21000059]
[1763089746443,0.00023162,99523.0,99522.0,0.21200059]
[1763089746641,0.00023162,99523.0,99522.0,0.21400059]
[1763089748118,0.00023162,99523.0,99522.0,0.01304]
[1763089749113,0.00023162,99523.0,99522.0,0.01104]
[1763089749333,0.00023162,99523.0,99522.0,0.00904]
[1763089749547,0.00023162,99523.0,99522.0,0.21100059]
[1763089749748,0.00023162,99523.0,99522.0,0.21200059]
[1763089749944,0.00023162,99523.0,99522.0,0.01104]
[1763089750149,0.00023162,99523.0,99522.0,0.21200059]
[1763089750964,0.00023162,99523.0,99522.0,0.01104]
[1763089751396,0.00023162,99523.0,99522.0,0.01004]
[1763089751916,0.00023162,99523.0,99522.0,0.01104]
[1763089752520,0.00023162,99523.0,99522.0,0.01004]
[1763089752726,0.00023162,99523.0,99522.0,0.01104]
[1763089753952,0.00023162,99523.0,99522.0,0.03801]
[1763089754349,0.00023162,99523.0,99522.0,0.03701]
[1763089754550,0.00023162,99523.0,99522.0,0.03601]
[1763089754761,0.00023162,99523.0,99522.0,0.03701]
[1763089755022,0.00023162,99523.0,99522.0,0.03601]
[1763089755199,0.00023162,99523.0,99522.0,0.01004]
[1763089755398,0.00023162,99523.0,99522.0,0.01104]
[1763089755609,0.00023162,99523.0,99522.0,0.01004]
[1763089756020,0.00023162,99523.0,99522.0,0.01104]
[1763089756167,0.00023162,99523.0,99522.0,0.01004]
[1763089757734,0.00023162,99523.0,99522.0,0.01104]
[1763089758164,0.0605406,99523.0,99522.0,0.01104]
[1763089758754,0.00023162,99523.0,99522.0,0.01104]
[1763089759309,0.12066399,99523.0,99522.0,0.002]
[1763089760593,0.12066399,99523.0,99522.0,0.001]
[1763089760793,0.20096059,99522.0,99514.0,0.00904]
[1763089761002,0.20097472,99515.0,99514.0,0.00904]
[1763089761858,0.20096261,99521.0,99515.0,0.02697]
[1763089762164,0.20095453,99525.0,99524.0,0.01154]
[1763089763909,0.20095453,99525.0,99524.0,0.03851]
[1763089764119,0.20095453,99525.0,99524.0,0.01154]
[1763089764538,0.20095453,99525.0,99524.0,0.01254]
[1763089765180,0.20095453,99525.0,99524.0,0.01354]
[1763089766119,0.20094861,99529.0,99524.0,0.01354]
[1763089766337,0.39472944,99540.0,99533.0,0.02982]
[1763089766529,0.09523237,99535.0,99533.0,0.0117]
[1763089766862,0.20093636,99534.0,99533.0,0.0117]
[1763089768096,0.2009361,99535.0,99533.0,0.0117]
[1763089768302,0.20093176,99537.0,99534.0,0.02697]
[1763089768509,0.20092627,99539.0,99534.0,0.02697]
[1763089768760,0.00030878,99535.0,99534.0,0.02697]